bitfinex/quotes_BTCUSD_20250226
["timestamp","ask_amount","ask_price","bid_price","bid_amount"]
[1740604673754,0.177365,84571.0,84570.0,4e-05]
[1740604673954,0.505665,84571.0,84570.0,4e-05]
[1740604677859,0.510416,84571.0,84570.0,4e-05]
[1740604678175,0.63027265,84571.0,84570.0,4e-05]
[1740604678810,0.37765058,84571.0,84570.0,4e-05]
[1740604679013,0.43515893,84571.0,84570.0,4e-05]
[1740604681878,0.47733752,84571.0,84570.0,4e-05]
[1740604682294,0.48208752,84571.0,84570.0,4e-05]
[1740604682632,0.14903752,84571.0,84570.0,0.04004]
[1740604682934,0.14903752,84571.0,84570.0,0.05458085]
[1740604683125,0.14903752,84571.0,84570.0,0.06170641]
[1740604683346,0.413801,84582.0,84581.0,0.05434085]
[1740604684240,0.1781332,84610.0,84609.0,0.02]
[1740604684623,0.17825549,84610.0,84609.0,0.02]
[1740604685943,0.17825549,84610.0,84589.0,0.02]
[1740604685944,0.177325,84590.0,84589.0,0.02]
[1740604686167,0.177336,84585.0,84584.0,0.0198]
[1740604686751,0.236441,84588.0,84581.0,0.0004246]
[1740604686950,0.177342,84582.0,84581.0,0.0004246]
[1740604687430,0.177342,84582.0,84581.0,0.0204246]
[1740604687634,0.177342,84582.0,84581.0,0.0402246]
[1740604688040,0.2660101,84582.0,84581.0,0.0004246]
[1740604688423,0.505642,84582.0,84581.0,0.0004246]
[1740604688567,0.505642,84582.0,84581.0,0.0402246]
[1740604688762,0.505642,84582.0,84581.0,0.0004246]
[1740604688964,0.505642,84582.0,84581.0,0.0204246]
[1740604689617,0.505642,84582.0,84581.0,0.0004246]
[1740604689823,0.505642,84582.0,84581.0,0.0204246]
[1740604690378,0.177342,84582.0,84581.0,0.0402246]
[1740604690687,0.19590998,84582.0,84581.0,0.05476545]
[1740604691035,0.177342,84582.0,84581.0,0.05476545]
[1740604692049,0.413707,84601.0,84600.0,0.0398]
[1740604692249,0.41382926,84601.0,84600.0,0.0398]
[1740604692840,0.00012226,84601.0,84594.0,0.02]
[1740604693046,0.00012226,84601.0,84585.0,0.02]
[1740604693247,0.177334,84586.0,84585.0,0.0398]
[1740604693494,0.177334,84586.0,84585.0,0.02]
[1740604693650,0.236442,84587.0,84581.0,0.0124129]
[1740604693984,0.177342,84582.0,84581.0,0.0124129]
[1740604694186,0.505642,84582.0,84581.0,0.0004246]
[1740604694758,0.505642,84582.0,84581.0,0.0204246]
[1740604695606,0.505642,84582.0,84581.0,0.0004246]
[1740604696812,0.505642,84582.0,84581.0,0.0204246]
[1740604697753,0.177342,84582.0,84581.0,0.0204246]
[1740604698509,0.1781916,84582.0,84581.0,0.0204246]
[1740604699645,0.19676024,84582.0,84581.0,0.0204246]
[1740604699981,0.19676024,84582.0,84581.0,0.0402246]
[1740604700183,0.20419228,84584.0,84583.0,0.0398]
[1740604700988,0.20419228,84584.0,84581.0,0.0204246]
[1740604700989,0.177342,84582.0,84581.0,0.0204246]
[1740604701498,0.177342,84582.0,84581.0,0.0004246]
[1740604701810,0.177342,84582.0,84581.0,0.0204246]
[1740604702225,0.177342,84582.0,84581.0,0.0004246]
[1740604702828,0.177342,84582.0,84581.0,0.0204246]
[1740604703031,0.37649812,84582.0,84581.0,0.0004246]
[1740604703407,0.37649812,84582.0,84581.0,0.0204246]
[1740604704433,0.37649812,84582.0,84581.0,0.0402246]
[1740604705416,0.177342,84582.0,84581.0,0.0004246]
[1740604705637,0.37649812,84582.0,84581.0,0.0004246]
[1740604706091,0.38124812,84582.0,84581.0,0.0004246]
[1740604707367,0.48708126,84582.0,84581.0,0.0004246]
[1740604707569,0.28792514,84582.0,84581.0,0.0004246]
[1740604707771,0.61778126,84582.0,84581.0,0.0004246]
[1740604707967,0.177563,84572.0,84571.0,0.00049885]
[1740604708544,0.37671912,84572.0,84571.0,0.00049885]
[1740604708771,0.177378,84565.0,84542.0,0.02]
[1740604708972,0.37653412,84565.0,84542.0,0.02]
[1740604709529,0.37653412,84565.0,84544.0,0.02]
[1740604710428,0.37653412,84565.0,84551.0,0.02]
[1740604710685,0.37653412,84565.0,84557.0,0.02]
[1740604710813,0.3445332,84565.0,84557.0,0.02]
[1740604711230,0.3445332,84565.0,84564.0,0.02321591]
[1740604711678,0.14537708,84565.0,84564.0,0.04301591]
[1740604711971,0.14537708,84565.0,84564.0,0.05593591]
[1740604712148,0.14537708,84565.0,84564.0,0.07047676]
[1740604712332,0.14537708,84565.0,84564.0,0.07752444]
[1740604712735,0.0008496,84582.0,84565.0,0.01454085]
[1740604712940,0.1781916,84582.0,84581.0,0.0398]
[1740604714316,0.1781916,84582.0,84581.0,0.02]
[1740604714520,0.1781916,84582.0,84581.0,0.0398]
[1740604715021,0.1781916,84582.0,84581.0,0.02]
[1740604715226,0.1781916,84582.0,84581.0,0.0398]
[1740604716229,0.1781916,84582.0,84581.0,0.03984]
[1740604716451,0.1781916,84582.0,84581.0,0.05438085]
[1740604718369,0.236448,84585.0,84584.0,0.03454085]
[1740604718569,0.236448,84585.0,84584.0,0.05434085]
[1740604719913,0.236448,84585.0,84584.0,0.0398]
[1740604720083,0.25501448,84585.0,84584.0,0.0398]
[1740604721109,0.25501448,84585.0,84584.0,0.05434085]
[1740604721285,0.25501448,84585.0,84584.0,0.14357093]
[1740604721813,0.01856648,84585.0,84584.0,0.47087093]
[1740604722023,0.19915612,84634.0,84609.0,0.0398]
[1740604722024,0.1781332,84610.0,84609.0,0.0398]
[1740604722173,0.1781332,84610.0,84609.0,0.06726085]
[1740604722375,0.17825549,84610.0,84609.0,0.06726085]
[1740604722976,0.17825549,84610.0,84609.0,0.02]
[1740604723207,0.17825549,84610.0,84609.0,0.0398]
[1740604723840,0.17825549,84610.0,84584.0,0.33923008]
[1740604723841,0.177288,84608.0,84607.0,0.02]
[1740604723987,0.177328,84589.0,84588.0,0.03292]
[1740604724189,0.177328,84589.0,84565.0,0.2531554]
[1740604724190,0.177342,84582.0,84581.0,0.03984]
[1740604724549,0.177342,84582.0,84581.0,0.02004]
[1740604724759,0.177342,84582.0,84581.0,0.03984]
[1740604725090,0.177342,84582.0,84581.0,0.05438085]
[1740604725524,0.17740944,84582.0,84581.0,0.05438085]
[1740604726101,0.17740944,84582.0,84581.0,0.03438085]
[1740604726302,0.17740944,84582.0,84581.0,0.05438085]
[1740604727130,0.17740944,84582.0,84581.0,0.05442085]
[1740604728457,0.17740944,84582.0,84581.0,8e-05]
[1740604728656,0.17740944,84582.0,84581.0,0.02008]
[1740604730036,0.17740944,84582.0,84581.0,0.03988]
[1740604730583,0.17740944,84582.0,84581.0,0.02008]
[1740604730785,0.17740944,84582.0,84581.0,0.03988]
[1740604730987,0.17740944,84582.0,84581.0,0.05442085]
[1740604731433,6.744e-05,84582.0,84581.0,0.05442085]
[1740604731745,0.19669944,84610.0,84609.0,0.05434085]
[1740604732019,0.17820096,84610.0,84609.0,0.06722085]
[1740604732515,0.17820096,84610.0,84609.0,0.05268]
[1740604732747,0.17820096,84610.0,84609.0,0.0398]
[1740604732900,0.17820096,84610.0,84609.0,0.05268]
[1740604733473,0.17820096,84610.0,84609.0,0.03268]
[1740604733682,0.17729,84607.0,84606.0,0.02]
[1740604733877,0.177294,84605.0,84604.0,0.02]
[1740604734077,0.177294,84605.0,84604.0,0.0398]
[1740604735333,0.195858,84605.0,84604.0,0.0398]
[1740604735538,0.177294,84605.0,84604.0,0.0398]
[1740604736856,0.37644412,84608.0,84607.0,0.02]
[1740604737166,0.236389,84607.0,84601.0,0.02]
[1740604737329,0.236389,84607.0,84604.0,0.02]
[1740604737330,0.177294,84605.0,84604.0,0.02]
[1740604738484,0.19585839,84605.0,84604.0,0.02]
[1740604742522,0.19585839,84605.0,84604.0,0.0398]
[1740604742661,0.19585839,84605.0,84604.0,0.05434085]
[1740604744016,0.26291332,84605.0,84604.0,0.0398]
[1740604744193,0.26291332,84605.0,84604.0,0.02]
[1740604744403,0.19585839,84605.0,84604.0,0.0398]
[1740604744727,0.236412,84599.0,84596.0,0.02]
[1740604744900,0.177313,84596.0,84595.0,0.0198]
[1740604745082,0.177313,84596.0,84595.0,0.0398]
[1740604745705,0.19587817,84596.0,84595.0,0.0398]
[1740604745904,0.19587817,84596.0,84595.0,0.05434085]
[1740604746172,0.01856517,84596.0,84595.0,0.05434085]
[1740604746446,0.19587817,84596.0,84595.0,0.05434085]
[1740604747870,0.0008494,84605.0,84595.0,0.05434085]
[1740604748077,0.1781434,84605.0,84604.0,0.05434085]
[1740604748434,0.1781434,84605.0,84604.0,0.03434085]
[1740604748755,0.1781434,84605.0,84604.0,0.0398]
[1740604749132,0.177317,84594.0,84593.0,0.01288]
[1740604749335,0.177313,84596.0,84595.0,0.02]
[1740604749498,0.177342,84582.0,84581.0,0.0005047]
[1740604749703,0.177342,84582.0,84581.0,0.0205047]
[1740604750500,0.222642,84582.0,84581.0,0.0205047]
[1740604750670,0.34249865,84582.0,84581.0,0.0205047]
[1740604751039,0.222642,84582.0,84581.0,0.0205047]
[1740604751370,0.52136698,84582.0,84581.0,0.0005047]
[1740604752916,0.44036698,84582.0,84581.0,0.0005047]
[1740604753688,0.42179812,84582.0,84581.0,0.0005047]
[1740604753934,0.42179812,84582.0,84581.0,0.0205047]
[1740604754567,0.54165477,84582.0,84581.0,0.0005047]
[1740604755619,0.177376,84566.0,84564.0,0.00364071]
[1740604755825,0.177407,84551.0,84550.0,4e-05]
[1740604755991,0.177407,84551.0,84526.0,0.0057846]
[1740604755992,0.177458,84527.0,84526.0,0.0057846]
[1740604756392,0.177458,84527.0,84526.0,0.02590727]
[1740604756608,0.177458,84527.0,84526.0,0.04570727]
[1740604756902,0.19603772,84527.0,84526.0,0.04570727]
[1740604758030,0.177458,84527.0,84526.0,0.04570727]
[1740604758772,0.24055444,84527.0,84526.0,0.00590727]
[1740604758986,0.177458,84527.0,84526.0,0.04570727]
[1740604759139,0.21542082,84529.0,84526.0,0.04570727]
[1740604759382,0.177458,84527.0,84526.0,0.00590727]
[1740604759580,0.227258,84527.0,84526.0,0.00590727]
[1740604759780,0.38624565,84527.0,84526.0,0.00590727]
[1740604759983,0.308858,84527.0,84526.0,0.00590727]
[1740604761126,0.50801412,84527.0,84526.0,0.00590727]
[1740604762033,0.177474,84519.0,84518.0,0.00407955]
[1740604762240,0.27206963,84519.0,84518.0,0.00448956]
[1740604763347,0.177481,84516.0,84495.0,8e-05]
[1740604763646,0.177502,84506.0,84495.0,8e-05]
[1740604764163,0.177502,84506.0,84501.0,0.02]
[1740604764382,0.177502,84506.0,84505.0,0.02004]
[1740604764585,0.177502,84506.0,84505.0,0.03984]
[1740604768219,0.17788317,84519.0,84518.0,0.05434085]
[1740604768366,0.00040917,84519.0,84518.0,0.55911685]
[1740604768551,0.00040917,84519.0,84518.0,0.71442854]
[1740604768754,0.00040917,84519.0,84518.0,0.55695254]
[1740604769314,0.17788317,84519.0,84518.0,0.55695254]
[1740604769604,0.17788317,84519.0,84518.0,0.53695254]
[1740604769807,0.17788317,84519.0,84518.0,0.55695254]
[1740604770042,0.17788317,84519.0,84518.0,0.43724085]
[1740604770214,0.17788317,84519.0,84518.0,0.39452085]
[1740604770357,0.17788317,84519.0,84518.0,0.06722085]
[1740604770557,0.17788317,84519.0,84518.0,0.04742085]
[1740604770756,0.17788317,84519.0,84518.0,0.06722085]
[1740604770960,0.17788317,84519.0,84518.0,0.0398]
[1740604771920,0.17788317,84519.0,84518.0,0.02]
[1740604772072,0.17788317,84519.0,84518.0,0.0398]
[1740604772774,0.17788317,84519.0,84518.0,0.05268]
[1740604772966,0.17788317,84519.0,84518.0,0.06722085]
[1740604774012,0.17788317,84519.0,84518.0,0.06872115]
[1740604774445,0.19646286,84519.0,84518.0,0.06872115]
[1740604774656,0.01898886,84519.0,84518.0,0.06872115]
[1740604774863,0.17788317,84519.0,84518.0,0.06872115]
[1740604775086,0.00040917,84519.0,84518.0,0.08872115]
[1740604775260,0.17788317,84519.0,84518.0,0.08141486]
[1740604775412,0.17788317,84519.0,84518.0,0.06872115]
[1740604776199,0.17788317,84519.0,84518.0,0.04892115]
[1740604776393,0.1913924,84521.0,84520.0,0.0398]
[1740604776533,0.236602,84531.0,84520.0,0.0398]
[1740604776534,0.177395,84557.0,84556.0,0.0398]
[1740604776735,0.236524,84558.0,84556.0,0.0198]
[1740604776935,0.177403,84553.0,84552.0,0.0198]
[1740604777139,0.177403,84553.0,84552.0,0.0398]
[1740604778199,0.19597934,84553.0,84552.0,0.0398]
[1740604778393,0.19597934,84553.0,84552.0,0.02]
[1740604778595,0.21773246,84553.0,84534.0,0.0198]
[1740604778823,0.177439,84536.0,84535.0,0.02]
[1740604778955,0.19915612,84543.0,84524.0,0.0001229]
[1740604779157,0.0496,84534.0,84529.0,0.02]
[1740604779346,0.177451,84530.0,84529.0,0.0398]
[1740604780784,0.177451,84530.0,84529.0,0.05434085]
[1740604782568,0.19602848,84530.0,84529.0,0.0398]
[1740604782918,0.177451,84530.0,84529.0,0.0398]
[1740604783691,0.236573,84541.0,84540.0,0.05434085]
[1740604783939,0.177388,84560.0,84559.0,0.0398]
[1740604784723,0.236484,84572.0,84560.0,0.0398]
[1740604785082,0.09465383,84575.0,84556.0,0.0398]
[1740604785083,0.177395,84557.0,84556.0,0.0398]
[1740604786273,0.19596914,84557.0,84556.0,0.0398]
[1740604786481,0.177395,84557.0,84556.0,0.0398]
[1740604787713,0.177395,84557.0,84533.0,0.0198]
[1740604787714,0.0764,84555.0,84533.0,0.0198]
[1740604787859,0.0764,84555.0,84501.0,0.0831]
[1740604787860,0.177426,84542.0,84541.0,0.02]
[1740604788062,0.177426,84542.0,84541.0,0.0398]
[1740604788622,0.236565,84544.0,84524.0,0.01284]
[1740604788623,0.177462,84525.0,84524.0,0.05264]
[1740604788950,0.177462,84525.0,84524.0,0.0527629]
[1740604789829,0.177462,84525.0,84524.0,0.06730375]
[1740604791150,0.236601,84531.0,84530.0,0.0198]
[1740604791355,0.41405,84531.0,84530.0,0.0198]
[1740604791782,0.236601,84531.0,84525.0,0.0198]
[1740604791990,0.236601,84531.0,84524.0,0.0001229]
[1740604791991,0.177455,84528.0,84527.0,0.0398]
[1740604794081,0.19603343,84528.0,84527.0,0.0398]
[1740604794459,0.177455,84528.0,84527.0,0.0398]
[1740604798072,0.177462,84525.0,84524.0,0.0001229]
[1740604798919,0.177462,84525.0,84524.0,0.0201229]
[1740604799126,0.177462,84525.0,84524.0,0.0399229]
[1740604799467,0.191802,84525.0,84524.0,0.0399229]
[1740604800557,0.177462,84525.0,84524.0,0.0399229]
[1740604801658,0.177462,84525.0,84524.0,0.0199229]
[1740604802437,0.177462,84525.0,84524.0,0.0201229]
[1740604802679,0.45341812,84525.0,84524.0,0.0001229]
[1740604802853,0.45341812,84525.0,84519.0,0.0015003]
[1740604802854,0.177472,84520.0,84519.0,0.0015003]
[1740604803638,0.19915612,84520.0,84519.0,0.1789743]
[1740604803839,0.0008476,84557.0,84524.0,0.05434085]
[1740604804048,0.00097043,84557.0,84556.0,0.0398]
[1740604804207,0.00097043,84557.0,84556.0,0.12294085]
[1740604804406,0.00097043,84557.0,84556.0,0.17173015]
[1740604804969,0.17836543,84557.0,84556.0,0.11889015]
[1740604805168,0.17836543,84557.0,84556.0,0.04738085]
[1740604805478,0.17836543,84557.0,84556.0,0.05434085]
[1740604805643,0.177426,84542.0,84541.0,0.05185627]
[1740604806025,0.23656,84545.0,84544.0,0.0398]
[1740604806228,0.413962,84549.0,84548.0,0.05434085]
[1740604806802,0.413962,84549.0,84548.0,0.0398]
[1740604806972,0.413962,84549.0,84548.0,0.0198]
[1740604807176,0.413962,84549.0,84548.0,0.0398]
[1740604807491,0.177416,84547.0,84501.0,0.02]
[1740604807633,0.236551,84549.0,84416.0,0.00353739]
[1740604807634,0.177689,84417.0,84416.0,0.00353739]
[1740604807837,0.177689,84417.0,84416.0,0.24589739]
[1740604808037,0.177689,84417.0,84416.0,0.25873739]
[1740604808234,0.0032,84445.0,84416.0,0.24589739]
[1740604808439,0.0032,84445.0,84417.0,0.01284]
[1740604808639,0.0032,84445.0,84416.0,0.24589739]
[1740604808640,0.177689,84417.0,84416.0,0.24589739]
[1740604808848,0.236843,84444.0,84416.0,0.24589739]
[1740604809060,0.0032,84445.0,84417.0,0.01284]
[1740604809463,0.0032,84445.0,84416.0,0.24630656]
[1740604809660,0.0032,84445.0,84417.0,0.00165771]
[1740604810107,0.0032,84445.0,84418.0,0.4035731]
[1740604810314,0.0032,84445.0,84420.0,0.23691]
[1740604810512,0.0483,84477.0,84439.0,0.37877667]
[1740604810688,0.0483,84477.0,84440.0,0.0144975]
[1740604810887,0.035652,84480.0,84459.0,0.01454085]
[1740604811135,0.035652,84480.0,84460.0,0.04098903]
[1740604811431,0.02,84508.0,84460.0,0.04098903]
[1740604811432,0.00157551,84502.0,84467.0,0.37877667]
[1740604811604,0.00157551,84502.0,84460.0,0.05382903]
[1740604811605,0.035644,84499.0,84468.0,0.01619774]
[1740604812014,0.00157551,84502.0,84468.0,0.00165689]
[1740604812271,0.04,84532.0,84470.0,0.0819]
[1740604812475,0.00927129,84531.0,84478.0,0.37877667]
[1740604812642,0.02,84528.0,84480.0,0.01454085]
[1740604812819,0.05997997,84573.0,84479.0,0.24405621]
[1740604812820,0.00339107,84564.0,84524.0,0.236618]
[1740604813018,0.02,84552.0,84528.0,0.01454085]
[1740604813207,0.02,84552.0,84498.0,0.00165573]
[1740604813401,0.02,84552.0,84510.0,0.02]
[1740604813602,0.02,84541.0,84500.0,0.00165595]
[1740604813805,0.39877667,84505.0,84480.0,0.0016562]
[1740604814162,0.02,84486.0,84476.0,0.01284]
[1740604814377,0.37877667,84495.0,84446.0,0.0053523]
[1740604814378,0.02,84480.0,84446.0,0.0053523]
[1740604814579,0.02,84447.0,84446.0,0.0053523]
[1740604815362,0.055673,84447.0,84446.0,0.00576147]
[1740604815565,0.37893814,84478.0,84446.0,0.00576147]
[1740604815922,0.035667,84456.0,84446.0,0.00576147]
[1740604816105,0.05929765,84533.0,84447.0,0.00165788]
[1740604816106,0.46841581,84504.0,84447.0,0.00165788]
[1740604816316,0.46841581,84504.0,84446.0,0.00576147]
[1740604816317,0.37893814,84463.0,84446.0,0.01860147]
[1740604816739,0.177626,84447.0,84446.0,0.00576147]
[1740604817916,0.190506,84447.0,84446.0,0.00576147]
[1740604818120,0.2569221,84447.0,84446.0,0.00576147]
[1740604818494,0.190506,84447.0,84446.0,0.00576147]
[1740604820371,0.19392618,84447.0,84446.0,0.00576147]
[1740604820573,0.177689,84417.0,84416.0,0.01304]
[1740604820873,0.177689,84417.0,84416.0,0.00040983]
[1740604821050,0.0452,84425.0,84417.0,0.236919]
[1740604821230,0.00342018,84440.0,84418.0,0.02373288]
[1740604821430,0.2376452,84461.0,84418.0,0.01316]
[1740604821656,0.0008482,84461.0,84418.0,0.01316]
[1740604821857,0.0008482,84461.0,84418.0,0.03481856]
[1740604822175,0.02,84460.0,84428.0,0.02]
[1740604822404,0.0008482,84461.0,84458.0,0.01454085]
[1740604822605,0.0008482,84461.0,84460.0,0.21213885]
[1740604822717,0.0008482,84461.0,84460.0,0.27362781]
[1740604822934,0.0008482,84461.0,84460.0,0.21213885]
[1740604823187,0.05916993,84558.0,84460.0,0.21213885]
[1740604823188,0.035646,84503.0,84473.0,0.02]
[1740604823356,0.0535591,84542.0,84496.0,0.37893814]
[1740604823571,0.37893814,84540.0,84480.0,0.02]
[1740604823769,0.37893814,84540.0,84459.0,0.02]
[1740604823770,0.177566,84476.0,84459.0,0.02]
[1740604824034,0.177563,84477.0,84460.0,0.08172461]
[1740604824169,0.37893814,84521.0,84467.0,0.01454085]
[1740604824370,0.236698,84496.0,84469.0,0.01454085]
[1740604824589,0.177577,84470.0,84469.0,0.01454085]
[1740604824787,0.37893814,84521.0,84461.0,0.01454085]
[1740604824988,0.01454,84493.0,84463.0,0.01454085]
[1740604825212,0.01454,84493.0,84465.0,0.01454085]
[1740604825388,0.03789381,84520.0,84466.0,0.01489705]
[1740604825726,0.177582,84468.0,84467.0,0.01328]
[1740604825917,0.177582,84468.0,84467.0,0.01454085]
[1740604826171,0.09471098,84511.0,84449.0,0.01200762]
[1740604826346,0.177619,84450.0,84449.0,0.01200762]
[1740604826670,0.23682,84453.0,84449.0,0.01200762]
[1740604826806,0.23682,84452.0,84449.0,0.02532762]
[1740604827010,0.0451271,84510.0,84483.0,0.17755]
[1740604827193,0.035656,84510.0,84485.0,0.01454085]
[1740604827406,0.0880591,84542.0,84487.0,0.01454085]
[1740604827601,0.177537,84489.0,84488.0,0.01336]
[1740604827861,0.177535,84490.0,84489.0,0.01454085]
[1740604828590,0.03564,84523.0,84489.0,0.00012265]
[1740604828763,0.03564,84523.0,84522.0,0.177468]
[1740604829010,0.19605018,84524.0,84523.0,0.01454085]
[1740604829211,0.0057591,84542.0,84523.0,0.01454085]
[1740604829388,0.0057591,84542.0,84522.0,0.01336]
[1740604829389,0.0057591,84542.0,84535.0,0.177439]
[1740604829691,0.0057591,84542.0,84541.0,0.30667983]
[1740604829892,0.0008476,84557.0,84541.0,0.30667983]
[1740604829893,0.0008476,84557.0,84556.0,0.197397]
[1740604830219,0.0008476,84595.0,84579.0,0.02]
[1740604830346,0.0008476,84595.0,84580.0,0.19354193]
[1740604830548,0.00616903,84581.0,84580.0,0.25688804]
[1740604830732,0.0008476,84595.0,84581.0,0.02]
[1740604830938,0.0008476,84595.0,84594.0,0.03454085]
[1740604831138,0.0008476,84595.0,84588.0,0.00165439]
[1740604831139,0.00097052,84595.0,84588.0,0.00165439]
[1740604831471,0.00097052,84595.0,84594.0,0.177317]
[1740604831652,0.00097052,84595.0,84594.0,0.1950487]
[1740604831857,0.00097052,84595.0,84594.0,0.21124412]
[1740604832050,0.00097052,84595.0,84594.0,0.23124405]
[1740604832252,0.236255,84655.0,84626.0,0.17725]
[1740604832476,0.23626,84653.0,84633.0,0.02]
[1740604832679,0.00096985,84642.0,84641.0,0.177219]
[1740604832856,0.00096985,84642.0,84641.0,0.19341366]
[1740604833195,0.00096985,84642.0,84641.0,0.20713348]
[1740604833619,0.00096985,84642.0,84641.0,0.01619448]
[1740604833759,0.00096985,84642.0,84641.0,0.04344473]
[1740604834131,0.0008496,84670.0,84641.0,0.04344473]
[1740604834132,0.0008496,84670.0,84643.0,0.177214]
[1740604834291,0.00125887,84667.0,84644.0,0.00165337]
[1740604834473,0.00125887,84667.0,84645.0,0.01384]
[1740604834671,0.0096372,84666.0,84646.0,0.00165364]
[1740604834884,0.00125887,84667.0,84666.0,0.197166]
[1740604835093,0.0008496,84670.0,84669.0,0.17716]
[1740604835320,0.0008496,84670.0,84669.0,0.21335369]
[1740604835529,0.00097231,84670.0,84669.0,0.21335369]
[1740604835689,0.0008476,84680.0,84679.0,0.197139]
[1740604835884,0.0008476,84680.0,84679.0,0.22733239]
[1740604836117,8e-05,84724.0,84682.0,0.01454085]
[1740604836314,0.177113,84692.0,84683.0,0.00165246]
[1740604836553,0.0008492,84695.0,84684.0,0.19166985]
[1740604836770,0.0008492,84695.0,84685.0,0.01619353]
[1740604836945,0.0008492,84695.0,84692.0,0.256148]
[1740604837147,0.27255063,84764.0,84713.0,0.236091]
[1740604837345,0.27255063,84764.0,84695.0,0.01454085]
[1740604837346,0.37852576,84742.0,84715.0,0.01454085]
[1740604837545,0.00012269,84723.0,84696.0,0.00165209]
[1740604837747,0.00012269,84723.0,84697.0,0.01408]
[1740604837949,0.177064,84716.0,84703.0,0.177087]
[1740604838127,0.00012269,84723.0,84703.0,0.01787393]
[1740604838315,0.00012269,84723.0,84722.0,0.01454085]
[1740604838522,0.00012269,84723.0,84722.0,0.01619292]
[1740604838878,0.00012269,84723.0,84722.0,0.03587876]
[1740604839289,0.00012269,84723.0,84722.0,0.01619292]
[1740604839468,0.00012269,84723.0,84722.0,0.31215876]
[1740604839651,0.00012269,84723.0,84722.0,0.34940908]
[1740604839852,0.37852576,84781.0,84735.0,0.01968584]
[1740604840226,0.00031416,84778.0,84736.0,0.0213373]
[1740604840436,0.00040912,84781.0,84736.0,0.00165146]
[1740604840606,0.17694,84775.0,84737.0,0.01968584]
[1740604840824,0.00072328,84781.0,84750.0,0.01454085]
[1740604840825,0.00824207,84774.0,84750.0,0.01454085]
[1740604841069,0.00040912,84781.0,84780.0,0.176928]
[1740604841239,0.00040912,84781.0,84780.0,0.46916541]
[1740604841441,0.00040912,84781.0,84780.0,0.46751469]
[1740604841597,0.0083994,84798.0,84792.0,0.25555484]
[1740604841799,0.0085221,84798.0,84797.0,0.21111969]
[1740604842000,0.0085221,84798.0,84797.0,0.01619115]
[1740604842202,0.2362116,84822.0,84804.0,0.01968584]
[1740604842203,0.0004236,84822.0,84804.0,0.01968584]
[1740604842434,0.0004236,84822.0,84821.0,0.23106869]
[1740604842637,0.0004236,84822.0,84821.0,0.32348869]
[1740604842834,0.0004237,84830.0,84821.0,0.32348869]
[1740604842835,0.004732,84891.0,84853.0,0.19646184]
[1740604843180,0.17666,84909.0,84879.0,0.17672]
[1740604843319,1.176582,84992.0,84871.0,0.01968584]
[1740604843320,0.00083197,84881.0,84880.0,0.04990252]
[1740604843522,0.0004238,84907.0,84883.0,0.01968584]
[1740604843719,0.00054634,84907.0,84906.0,0.19635084]
[1740604844038,0.37852576,84967.0,84880.0,0.02886085]
[1740604844039,0.37852576,84967.0,84913.0,0.01968584]
[1740604844235,0.00051665,84954.0,84920.0,0.02]
[1740604844442,0.00031416,84951.0,84916.0,0.01454085]
[1740604844646,0.00031416,84952.0,84916.0,0.01454085]
[1740604844846,0.17664,84919.0,84917.0,0.01436]
[1740604845066,0.00031416,84941.0,84918.0,0.01436]
[1740604845377,0.17658,84948.0,84918.0,0.01436]
[1740604845588,8e-05,84954.0,84926.0,0.01968584]
[1740604845787,8e-05,84954.0,84918.0,0.01436]
[1740604845788,8e-05,84954.0,84928.0,0.01454085]
[1740604845941,8e-05,84954.0,84929.0,0.02]
[1740604846162,0.00020249,84954.0,84940.0,0.01968584]
[1740604846502,0.00020249,84954.0,84953.0,0.19110885]
[1740604846805,0.00031416,85008.0,84961.0,0.03422669]
[1740604847007,0.235305,84996.0,84961.0,0.21077769]
[1740604847226,0.007889,84998.0,84973.0,0.01968584]
[1740604847405,0.01455602,84974.0,84973.0,0.23075269]
[1740604847724,0.00031416,85040.0,84997.0,0.01968584]
[1740604848038,0.00031416,85040.0,84973.0,0.0779]
[1740604848039,0.00106866,85066.0,85021.0,0.01968584]
[1740604848174,0.00512857,85022.0,85021.0,0.19000217]
[1740604848371,0.00106866,85066.0,85021.0,0.19000217]
[1740604848372,0.00106866,85066.0,85042.0,0.01454085]
[1740604848616,0.01043328,85043.0,85042.0,0.21092385]
[1740604848819,0.01043328,85043.0,85042.0,0.21060969]
[1740604848964,0.01043328,85043.0,85037.0,0.24144]
[1740604849161,0.01043328,85043.0,85038.0,0.02149878]
[1740604849454,0.37852576,85065.0,85024.0,0.01468]
[1740604849726,0.37852576,85065.0,85008.0,0.01468]
[1740604849727,0.37852576,85056.0,85008.0,0.01468]
[1740604849993,0.010433,85061.0,85016.0,0.02]
[1740604850137,0.0103108,85111.0,85044.0,0.02]
[1740604850364,0.00721993,85060.0,85053.0,0.01454085]
[1740604850508,0.035395,85084.0,85054.0,0.01476]
[1740604850711,0.035395,85084.0,85072.0,0.176319]
[1740604850929,0.035395,85084.0,85073.0,0.0176319]
[1740604850930,0.00518328,85083.0,85073.0,0.0176319]
[1740604851181,0.035395,85084.0,85063.0,0.02]
[1740604851371,0.035395,85084.0,85043.0,0.235174]
[1740604851372,0.00647303,85082.0,85049.0,0.02]
[1740604851549,0.37852576,85070.0,85043.0,0.0148]
[1740604851727,0.37852576,85070.0,85014.0,0.0756]
[1740604851728,0.17638,85044.0,85022.0,0.01496]
[1740604851939,0.23517,85045.0,84998.0,0.02]
[1740604852119,0.37852576,85042.0,84997.0,0.01496]
[1740604852326,0.37842698,85033.0,84997.0,0.01496]
[1740604852550,0.37852576,85042.0,84997.0,0.01496]
[1740604852793,0.37852576,85033.0,84997.0,0.01496]
[1740604853010,0.176455,85008.0,84997.0,0.01496]
[1740604853149,0.0065444,85007.0,84997.0,0.00040857]
[1740604853361,0.176435,85017.0,84998.0,0.015]
[1740604853580,0.02,85041.0,84998.0,0.015]
[1740604853581,0.0065444,85016.0,85000.0,0.02]
[1740604853804,0.02,85041.0,84998.0,0.015]
[1740604853954,0.0065444,85040.0,84998.0,0.015]
[1740604854156,0.37852576,85033.0,84998.0,0.015]
[1740604854360,0.02,85041.0,84999.0,0.015]
[1740604854601,0.0065444,85040.0,84999.0,0.015]
[1740604854800,0.38507016,85040.0,84999.0,0.015]
[1740604855003,0.0065444,85040.0,85004.0,0.02]
[1740604855210,0.23513,85059.0,84999.0,0.015]
[1740604855407,0.0065444,85058.0,85013.0,0.02]